Cogmind - Beta 13 @@@ ROGUE MODE // 2024.06.18 @ 13:25:55 Player: Gabe+Kate4EVR Result: Destroyed by B-90 Cyclops with Nova Cannon Performance ------------- Evolutions (8) 4000 Regions Visited (15) 3000 Robots Destroyed (78) 390 Value Destroyed (2653) 2653 Prototype IDs (3) 60 Alien Tech Used (0) 0 Bonus (1300) 1300 TOTAL SCORE: 11403 Bonus ------- Entered DSFs 1000 Acquired ECA 300 Cogmind --------- Core Integrity 0/1450 Matter 108/300 Energy 82/100 System Corruption 2% Temperature Cool (9) Movement Core (50) Location -2/Research Parts ------- > --- POWER (2) -------- (None) > --- PROPULSION (12) -- (None) > --- UTILITY (7) ------ Improved Dynamic Insulation System > --- WEAPON (2) ------- (None) > --- INVENTORY (5) ---- Improved Heat Sink Improved Plasma Cutter Force Lance Force Lance Peak State ------------ > --- POWER ------------ Micro Nuclear Core Micro Fission Core > --- PROPULSION ------- Improved Hover Unit Combat Airjet Antigrav System Antigrav System Improved Gyrokinetic Inverter Improved Linear Gravjet Xenon Bombardment Thruster Xenon Bombardment Thruster > --- UTILITY ---------- Advanced Cooling System Advanced Weight Redist. System Improved Sensor Array Advanced Signal Interpreter Salvage Targeting Computer Phase Shifter Advanced Hacking Suite > --- WEAPON ----------- Katana Power Sword > --- INVENTORY -------- Fission Core Improved Heat Sink Advanced Focal Shield Improved Dynamic Insulation System Improved Plasma Cutter [Rating: 91] Favorites ----------- Power Micro Nuclear Core Engine Improved Ion Engine Power Core Micro Nuclear Core Reactor Light Quantum Reactor Propulsion Aluminum Leg Treads Advanced Treads Leg Aluminum Leg Hover Unit Improved Gravmag System Flight Unit Xenon Bombardment Thruster Utility Signal Interpreter Device Improved Cooling System Storage Large Storage Unit Processor Signal Interpreter Hackware Advanced Hacking Suite Protection Improved Light Armor Plating Weapon Field Laser Energy Gun Field Laser Ballistic Gun Gauss Rifle Ballistic Cannon Gauss Cannon Launcher Heavy Rocket Launcher Slashing Weapon Katana Piercing Weapon Force Lance Build | -11 -10 -9 -8 -7 -7 -6 -6 -6 -5 -5 -5 -4 -3 -3 -2 ------- Run | Yrd Mat Mat Mat Fac DSF Fac Low Low Fac Was Fac Fac Res DSF Res Slots Evolved 16 | . . 2 2 2 . 2 . . 2 . . 2 2 . 2 Power 1 | . . . . . . . . . 1 . . . . . . Propulsion 10 | . . . 1 . . 2 . . 1 . . 2 2 . 2 Utility 5 | . . 2 1 2 . . . . . . . . . . . Weapon . | . . . . . . . . . . . . . . . . Parts Attached 156 | 7 8 27 22 7 27 16 . . 8 1 17 6 . 5 5 Power 19 | 1 2 3 2 . 4 1 . . 2 . 2 . . 1 1 Engine 10 | 1 2 3 1 . 3 . . . . . . . . . . Core 8 | . . . 1 . 1 1 . . 2 . 2 . . 1 . Reactor 1 | . . . . . . . . . . . . . . . 1 Propulsion 69 | 2 3 8 10 5 10 10 . . 3 1 7 6 . 4 . Treads 4 | . . . 2 1 1 . . . . . . . . . . Leg 31 | 2 3 8 8 3 7 . . . . . . . . . . Wheel . | . . . . . . . . . . . . . . . . Hover 20 | . . . . . . 7 . . 1 1 4 3 . 4 . Flight 14 | . . . . 1 2 3 . . 2 . 3 3 . . . Utility 37 | 1 1 8 5 2 6 5 . . 1 . 6 . . . 2 Device 21 | . . 4 3 . 3 3 . . 1 . 5 . . . 2 Storage 5 | 1 . 3 . . . 1 . . . . . . . . . Processor 7 | . 1 1 1 . 3 1 . . . . . . . . . Hackware 3 | . . . 1 1 . . . . . . 1 . . . . Protection 1 | . . . . 1 . . . . . . . . . . . Artifact . | . . . . . . . . . . . . . . . . Weapon 31 | 3 2 8 5 . 7 . . . 2 . 2 . . . 2 Energy Gun 12 | 1 1 6 3 . 1 . . . . . . . . . . Energy Cannon . | . . . . . . . . . . . . . . . . Ballistic Gun 7 | 2 1 1 2 . 1 . . . . . . . . . . Ballistic Cannon 2 | . . . . . 2 . . . . . . . . . . Launcher 6 | . . 1 . . 3 . . . 1 . 1 . . . . Special Weapon . | . . . . . . . . . . . . . . . . Impact Weapon . | . . . . . . . . . . . . . . . . Slashing Weapon 2 | . . . . . . . . . 1 . 1 . . . . Piercing Weapon 2 | . . . . . . . . . . . . . . . 2 Special Melee Weapon . | . . . . . . . . . . . . . . . . Unidentified Prototypes 1 | . . . . . . 1 . . . . . . . . . Corrupted Parts 1 | . 1 . . . . . . . . . . . . . . System Corruption 4 | . 4 . . . . . . . . . . . . . . Parts Lost 65 | . 1 5 6 . 21 . . . 1 1 7 2 . 10 11 Power 9 | . . 1 1 . 2 . . . . . 1 1 . . 3 Propulsion 32 | . . 3 4 . 8 . . . 1 1 4 1 . 5 5 Utility 15 | . . 1 1 . 5 . . . . . 2 . . 3 3 Weapon 9 | . 1 . . . 6 . . . . . . . . 2 . Highest Loss Streak 14 | . 1 3 2 . 14 . . . 1 1 7 1 . 11 11 To Critical Strikes . | . . . . . . . . . . . . . . . . Average Slot Usage (%) 88 | . 98 98 97 98 83 79 80 80 87 98 78 98 . 62 36 Engine 4 | . 14 10 8 . 4 . . . . . . . . . . Core 4 | . . . . 7 . 6 6 6 9 11 10 10 . 4 4 Leg 12 | . 28 21 26 21 16 . . . . . . . . . . Hover 9 | . . . . . . 21 26 26 23 27 14 29 . 20 12 Flight 3 | . . . . . . 5 . . 5 5 7 10 . 11 2 Device 14 | . . 20 9 7 6 22 20 20 17 17 16 21 . 9 3 Storage 6 | . 14 11 9 7 6 3 6 6 5 5 . . . . . Processor 13 | . 12 11 15 15 20 20 20 20 17 17 11 10 . 9 6 Hackware 3 | . . . 8 15 4 . . . . . 4 5 . 4 3 Energy Gun 6 | . 8 20 10 7 5 . . . . . . . . . . Ballistic Gun 3 | . 19 1 7 7 4 . . . . . . . . . . Slashing Weapon 2 | . . . . . . . . . . 5 6 10 . 2 . Naked Turns 43 | . . . . . . . . . . . . . . . 43 Heaviest Build 42 | 13 13 35 36 37 42 21 21 21 39 39 39 20 14 17 23 Greatest Support 86 | 20 20 20 54 53 54 41 41 41 52 52 34 72 27 86 54 Greatest Overweight (x) 3 | . . 2 2 . 2 3 . . . 1 1 . . . . Average Overweight (x) . | . . . . . . . . . . . . . . . . Largest Inventory Capacity 15 | 8 8 15 15 15 15 10 10 10 10 10 10 5 5 5 5 Average Capacity 10 | 6 8 13 15 15 13 7 10 10 10 10 5 5 5 5 5 Most Carried 15 | 2 8 15 15 15 15 10 10 10 10 10 10 5 5 5 5 Average Carried 9 | 1 6 11 14 14 12 7 9 10 9 10 5 4 5 4 4 Final Capacity 15 | 8 8 15 15 15 5 10 10 10 10 10 5 5 5 5 5 Final Carried 15 | 2 8 15 15 15 5 10 10 10 10 10 4 5 5 5 4 Class Distribution -------------------- 60% | Scavenger-Mutant 37% | Mutant Dominant Class ---------------- Mutant | -10/Materials Scavenger-Mutant | -9/Materials Scavenger-Mutant | -8/Materials Scavenger-Mutant | -7/Factory Scavenger-Mutant | -7/DSF Mutant | -6/Factory Mutant | -6/Lower Caves Mutant | -6/Lower Caves Mutant | -5/Factory Mutant | -5/Waste Mutant | -5/Factory Scavenger-Mutant | -4/Factory Scavenger-Mutant | -3/Research Mutant | -3/DSF Mutant | -2/Research Resources | -11 -10 -9 -8 -7 -7 -6 -6 -6 -5 -5 -5 -4 -3 -3 -2 ----------- Run | Yrd Mat Mat Mat Fac DSF Fac Low Low Fac Was Fac Fac Res DSF Res Matter Collected 1838 | 208 222 253 390 . 346 . 107 . 38 . 267 . . 7 . Remotely . | . . . . . . . . . . . . . . . . Salvage Created 2723 | . 397 849 755 . 399 . . . 77 . 170 76 . . . Parts 207 | . 28 61 56 . 30 . . . 15 . 10 7 . . . Haulers Intercepted 3 | . . 3 . . . . . . . . . . . . . Recyclers Shooed 1 | . . 1 . . . . . . . . . . . . . Parts Field Recycled . | . . . . . . . . . . . . . . . . Retrieved Matter . | . . . . . . . . . . . . . . . . Parts Self-Destructed . | . . . . . . . . . . . . . . . . Prevented . | . . . . . . . . . . . . . . . . Kills | -11 -10 -9 -8 -7 -7 -6 -6 -6 -5 -5 -5 -4 -3 -3 -2 ------- Run | Yrd Mat Mat Mat Fac DSF Fac Low Low Fac Was Fac Fac Res DSF Res Combat Hostiles Destroyed 62 | . 6 18 18 . 10 . . . 5 . 2 3 . . . Melee 5 | . . . . . . . . . . . 2 3 . . . Guns 46 | . 6 18 18 . 4 . . . . . . . . . . Cannons 4 | . . . . . 4 . . . . . . . . . . AOE 7 | . . . . . 2 . . . 5 . . . . . . Classes Destroyed 15 | . 4 6 3 . . . . . . . 2 . . . . Worker 2 | . . 1 . . . . . . 1 . . . . . . Tunneler 1 | . . . . . . . . . . . 1 . . . . Hauler 3 | . . 3 . . . . . . . . . . . . . Recycler 1 | . 1 . . . . . . . . . . . . . . Mechanic 1 | . 1 . . . . . . . . . . . . . . Operator 2 | . . 1 1 . . . . . . . . . . . . Watcher 6 | . 2 2 . . . . . . 1 . 1 . . . . Swarmer 16 | . . 5 3 . . . . . 5 . . 3 . . . Grunt 29 | . 6 10 9 . 4 . . . . . . . . . . Brawler 1 | . . 1 . . . . . . . . . . . . . Duelist 2 | . . . 2 . . . . . . . . . . . . Sentry 3 | . . 2 1 . . . . . . . . . . . . Specialist 8 | . . . 2 . 6 . . . . . . . . . . Programmer 2 | . . . . . . . . . . . 2 . . . . Heavy 1 | . . . 1 . . . . . . . . . . . . Best Kill Streak 6 | . 2 6 4 . 4 . . . 6 . 1 3 . . . Combat Bots Only 6 | . 2 6 4 . 4 . . . 5 . 1 3 . . . Max Kills in Single Turn 4 | . 1 1 2 . 2 . . . 4 . 1 1 . . . Gunslinging 1 | . . . 1 . . . . . . . . . . . . Exploded 3 | . . . . . 1 . . . 3 . . . . . . Melee 1 | . . . . . . . . . . . 1 1 . . . Uniques/NPCs Destroyed . | . . . . . . . . . . . . . . . . Combat | -11 -10 -9 -8 -7 -7 -6 -6 -6 -5 -5 -5 -4 -3 -3 -2 -------- Run | Yrd Mat Mat Mat Fac DSF Fac Low Low Fac Was Fac Fac Res DSF Res Hostile Shots Fired 715 | . 38 99 91 . 188 51 . . 7 2 83 27 . 13 116 Missed 226 | . 6 24 20 . 55 25 . . 4 1 36 16 . 3 36 Damage Taken 9556 | . 469 798 1160 . 2785 273 . . 147 56 750 186 . 560 2372 Core 3278 | . 106 172 244 . 559 121 . . 83 . 273 35 . 215 1470 Absorbed by Shields . | . . . . . . . . . . . . . . . . Ignored by Resistances 54 | . . . . . . 54 . . . . . . . . . Regen/Repaired (Parts) 197 | . . . 75 . . . . . . . . 122 . . . Core Remaining (%) 68 | 100 57 57 55 . 20 . . 85 . . 64 96 . 83 . Volleys Fired 183 | . 40 62 50 . 28 . . . 3 . . . . . . Largest 2 | . 2 2 2 . 2 . . . 1 . . . . . . Hottest 126 | . 60 126 91 . 104 . . . 39 . . . . . . Shots Fired 357 | . 77 124 99 . 54 . . . 3 . . . . . . Gun 333 | . 77 124 99 . 33 . . . . . . . . . . Cannon 18 | . . . . . 18 . . . . . . . . . . Launcher 6 | . . . . . 3 . . . 3 . . . . . . Special . | . . . . . . . . . . . . . . . . Kinetic 143 | . 58 3 50 . 32 . . . . . . . . . . Thermal 191 | . 2 121 49 . 19 . . . . . . . . . . Explosive 6 | . . . . . 3 . . . 3 . . . . . . Electromagnetic 17 | . 17 . . . . . . . . . . . . . . Robot Hit Streak 12 | . 7 9 12 . 10 . . . 9 . . . . . . Robot Miss Streak 6 | . 4 6 4 . 5 . . . . . . . . . . Penetration Max 1 | . . . 1 . 1 . . . . . . . . . . Secondary Targets 8 | . 1 3 4 . . . . . . . . . . . . Max Gunslinging Chain 1 | . 1 1 1 . . . . . . . . . . . . Shots Hit Robots 255 | . 47 69 73 . 43 . . . 2 . 16 4 . . 1 Core Hits 131 | . 22 28 40 . 24 . . . 7 . 6 3 . . 1 Critical Kills 1 | . 1 . . . . . . . . . . . . . . Critical Parts Destroyed 1 | . 1 . . . . . . . . . . . . . . Critical Strikes 12 | . 2 3 1 . 2 . . . . . 3 1 . . . Burn 4 | . . 3 1 . . . . . . . . . . . . Destroy 2 | . 2 . . . . . . . . . . . . . . Blast 2 | . . . . . 2 . . . . . . . . . . Sever 4 | . . . . . . . . . . . 3 1 . . . Melee Attacks 46 | . . . . . . . . . . . 30 11 . . 5 Impact . | . . . . . . . . . . . . . . . . Slashing 41 | . . . . . . . . . . . 30 11 . . . Piercing 5 | . . . . . . . . . . . . . . . 5 Sneak Attacks 1 | . . . . . . . . . . . 1 . . . . Combat Hostiles . | . . . . . . . . . . . . . . . . Follow-up Attacks 1 | . . . . . . . . . . . 1 . . . . Damage Inflicted 5718 | . 497 1182 1439 . 1290 . . . 500 . 604 151 . . 55 Guns 3645 | . 497 1182 1439 . 527 . . . . . . . . . . Cannons 401 | . . . . . 401 . . . . . . . . . . Explosions 839 | . . . . . 362 . . . 477 . . . . . . Melee 790 | . . . . . . . . . . . 604 151 . . 35 Ramming 43 | . . . . . . . . . 23 . . . . . 20 Kinetic 1831 | . 288 23 861 . 659 . . . . . . . . . . Thermal 2006 | . . 1159 578 . 269 . . . . . . . . . . Explosive 839 | . . . . . 362 . . . 477 . . . . . . Electromagnetic 209 | . 209 . . . . . . . . . . . . . . Impact . | . . . . . . . . . . . . . . . . Slashing 755 | . . . . . . . . . . . 604 151 . . . Piercing 35 | . . . . . . . . . . . . . . . 35 Highest Corruption 14 | . 4 . . . . . . . . 8 14 3 . 2 2 Average Corruption 6 | . 4 . . . . . . . . 8 9 3 . 1 1 Corruption Purged . | . . . . . . . . . . . . . . . . Corruption Blocked . | . . . . . . . . . . . . . . . . Effects 63 | . 11 . . . . . . . . 2 38 12 . . . Message Errors 19 | . 2 . . . . . . . . . 14 3 . . . Matter Fused 9 | . 3 . . . . . . . . . 5 1 . . . Heat Flow Errors 12 | . 1 . . . . . . . . . 9 2 . . . Energy Discharges 8 | . 3 . . . . . . . . . 2 3 . . . Parts Rejected 1 | . . . . . . . . . . . 1 . . . . Parts Fused 3 | . . . . . . . . . . . 1 2 . . . Data Loss (minor) 4 | . . . . . . . . . . 1 2 1 . . . Data Loss (major) 4 | . 2 . . . . . . . . 1 1 . . . . Alerts 2 | . . . . . . . . . . . 2 . . . . Misdirections 1 | . . . . . . . . . . . 1 . . . . Overload Shots . | . . . . . . . . . . . . . . . . Overflow Damage 139 | . . . . . 31 . . . 77 . 31 . . . . Projectiles 19 | . . . . . 19 . . . . . . . . . . Explosions 89 | . . . . . 12 . . . 77 . . . . . . Melee 31 | . . . . . . . . . . . 31 . . . . Knockbacks 4 | . . . . . 4 . . . . . . . . . . Impact . | . . . . . . . . . . . . . . . . Kinetic 4 | . . . . . 4 . . . . . . . . . . Secondary . | . . . . . . . . . . . . . . . . Self-Inflicted Damage 117 | . . . . . 11 . . . 96 . . . . . 10 Shots 4 | . . . . . 1 . . . 3 . . . . . . Rammed 3 | . . . . . . . . . 1 . . . . . 2 Targets Rammed 3 | . . . . . . . . . 1 . . . . . 2 Kicked . | . . . . . . . . . . . . . . . . Crushed . | . . . . . . . . . . . . . . . . Highest Temperature 755 | . 156 464 3 . 16 . . . . . 232 234 . . 755 Average Temperature 107 | . 43 97 3 . 9 . . . . . 101 112 . . 449 Received Heat Transfer 2961 | . 231 312 414 . 792 36 . . 18 . 30 . . . 1128 Effects 10 | . . 4 . . . . . . . . . . . . 6 Shutdowns 1 | . . 1 . . . . . . . . . . . . . Interference 2 | . . . . . . . . . . . . . . . 2 Short Circuit 2 | . . 1 . . . . . . . . . . . . 1 Damage (minor) 3 | . . 2 . . . . . . . . . . . . 1 Damage (major) 2 | . . . . . . . . . . . . . . . 2 Siege Activations . | . . . . . . . . . . . . . . . . Robots Corrupted . | . . . . . . . . . . . . . . . . Combat Hostiles . | . . . . . . . . . . . . . . . . Parts Fried . | . . . . . . . . . . . . . . . . Impact Corruptions . | . . . . . . . . . . . . . . . . Robots Melted . | . . . . . . . . . . . . . . . . Combat Hostiles . | . . . . . . . . . . . . . . . . Parts Melted 4 | . . 4 . . . . . . . . . . . . . Heat Transferred 4736 | . . 2775 1332 . 629 . . . . . . . . . . Parts Sabotaged . | . . . . . . . . . . . . . . . . Parts Stolen . | . . . . . . . . . . . . . . . . Parts Stripped . | . . . . . . . . . . . . . . . . Power Chain Reactions . | . . . . . . . . . . . . . . . . Alert | -11 -10 -9 -8 -7 -7 -6 -6 -6 -5 -5 -5 -4 -3 -3 -2 ------- Run | Yrd Mat Mat Mat Fac DSF Fac Low Low Fac Was Fac Fac Res DSF Res Peak Influence 398 | . 179 274 398 36 143 181 . . 194 97 109 100 47 37 273 Initial 115 | . . 20 115 32 25 56 . . . 67 60 53 47 37 8 Average 77 | . 87 96 115 32 61 108 . . 157 83 27 35 47 3 72 Maximum Alert Level 1 | . . 1 1 . . . . . . . . . . . 1 Low Security (%) 93 | 100 100 88 82 100 100 100 . . 100 100 100 100 100 100 96 Level 1 6 | . . 11 17 . . . . . . . . . . . 3 Level 2 . | . . . . . . . . . . . . . . . . Level 3 . | . . . . . . . . . . . . . . . . Level 4 . | . . . . . . . . . . . . . . . . Level 5 . | . . . . . . . . . . . . . . . . High Security . | . . . . . . . . . . . . . . . . Max Security . | . . . . . . . . . . . . . . . . Sterilizations 1 | . . . . . 1 . . . . . . . . . . Squads Dispatched 20 | . 1 2 3 . 3 1 . . 2 . 1 4 . . 3 Investigation 3 | . . . 1 . . 1 . . . . . . . . 1 Extermination 4 | . . . . . . . . . . . 1 2 . . 1 Reinforcement 11 | . 1 2 2 . 3 . . . . . . 2 . . 1 Assault . | . . . . . . . . . . . . . . . . Garrison 2 | . . . . . . . . . 2 . . . . . . Intercept . | . . . . . . . . . . . . . . . . Searches Triggered . | . . . . . . . . . . . . . . . . Construction Impeded . | . . . . . . . . . . . . . . . . Haulers Reinforced . | . . . . . . . . . . . . . . . . Active Scanning Responses . | . . . . . . . . . . . . . . . . Cargo Convoy Interrupts . | . . . . . . . . . . . . . . . . Stealth | -11 -10 -9 -8 -7 -7 -6 -6 -6 -5 -5 -5 -4 -3 -3 -2 --------- Run | Yrd Mat Mat Mat Fac DSF Fac Low Low Fac Was Fac Fac Res DSF Res Distress Signals 8 | . . 4 1 . . . . . . . 1 1 . . 1 Communications Jammed . | . . . . . . . . . . . . . . . . Distress Signals . | . . . . . . . . . . . . . . . . Times Spotted 149 | . 11 28 20 . 16 9 1 . 7 6 16 9 . 2 24 Peak Tracking Total 14 | . 2 6 6 . 6 3 4 . 6 6 10 8 . 2 14 Tactical Retreats 19 | . 1 1 2 . 3 3 1 . 1 . 2 1 . 1 3 Traps | -11 -10 -9 -8 -7 -7 -6 -6 -6 -5 -5 -5 -4 -3 -3 -2 ------- Run | Yrd Mat Mat Mat Fac DSF Fac Low Low Fac Was Fac Fac Res DSF Res Traps Triggered 15 | . 2 . 1 . 3 1 . . 1 . 1 1 . 1 4 Indirectly . | . . . . . . . . . . . . . . . . Trap Hack Attempts . | . . . . . . . . . . . . . . . . Triggered . | . . . . . . . . . . . . . . . . Disarmed . | . . . . . . . . . . . . . . . . Reprogrammed . | . . . . . . . . . . . . . . . . Reused . | . . . . . . . . . . . . . . . . Traps Extracted . | . . . . . . . . . . . . . . . . Installed . | . . . . . . . . . . . . . . . . Triggered . | . . . . . . . . . . . . . . . . Machines | -11 -10 -9 -8 -7 -7 -6 -6 -6 -5 -5 -5 -4 -3 -3 -2 ---------- Run | Yrd Mat Mat Mat Fac DSF Fac Low Low Fac Was Fac Fac Res DSF Res Machines Disabled 2 | . . . 2 . . . . . . . . . . . . Max in Single Turn 1 | . . . 1 . . . . . . . . . . . . Garrison Access 1 | . . . . . . 1 . . . . . . . . . Machines Repaired . | . . . . . . . . . . . . . . . . Machines Dismantled . | . . . . . . . . . . . . . . . . Machines Sabotaged . | . . . . . . . . . . . . . . . . Overloaded Fab Kills . | . . . . . . . . . . . . . . . . Hacking | -11 -10 -9 -8 -7 -7 -6 -6 -6 -5 -5 -5 -4 -3 -3 -2 --------- Run | Yrd Mat Mat Mat Fac DSF Fac Low Low Fac Was Fac Fac Res DSF Res Machines Accessed 19 | . 1 . 4 2 . 5 . . 1 . 2 2 1 . 1 Terminals 15 | . 1 . 2 2 . 4 . . 1 . 2 1 1 . 1 Fabricators . | . . . . . . . . . . . . . . . . Repair Stations 2 | . . . 1 . . . . . . . . 1 . . . Recycling Units . | . . . . . . . . . . . . . . . . Scanalyzers 1 | . . . 1 . . . . . . . . . . . . Garrison Access 1 | . . . . . . 1 . . . . . . . . . Total Hacks 35 | . 1 . 10 4 . 9 . . 2 . 3 4 1 . 1 Successful 17 | . 1 . 6 2 . 4 . . 1 . . 2 1 . . Failed 18 | . . . 4 2 . 5 . . 1 . 3 2 . . 1 Catastrophic 4 | . . . . . . 2 . . . . 1 . . . 1 Database Lockouts . | . . . . . . . . . . . . . . . . Manual 17 | . . . 6 1 . 6 . . . . 1 2 . . 1 Terminals 26 | . 1 . 5 4 . 7 . . 2 . 3 2 1 . 1 Fabricators . | . . . . . . . . . . . . . . . . Repair Stations 5 | . . . 3 . . . . . . . . 2 . . . Recycling Units . | . . . . . . . . . . . . . . . . Scanalyzers 2 | . . . 2 . . . . . . . . . . . . Garrison Access 2 | . . . . . . 2 . . . . . . . . . Terminal Hacks 8 | . 1 . 1 2 . 2 . . 1 . . . 1 . . Prototype ID Bank 1 | . 1 . . . . . . . . . . . . . . Open DSF 4 | . . . . 1 . 1 . . 1 . . . 1 . . Branch Access Points 1 | . . . . . . 1 . . . . . . . . . Alert Level 1 | . . . . 1 . . . . . . . . . . . Unreport Threat 1 | . . . 1 . . . . . . . . . . . . Fabricator Hacks . | . . . . . . . . . . . . . . . . Repair Station Hacks 4 | . . . 2 . . . . . . . . 2 . . . Scan Component 2 | . . . 1 . . . . . . . . 1 . . . Repair 2 | . . . 1 . . . . . . . . 1 . . . Recycling Unit Hacks . | . . . . . . . . . . . . . . . . Scanalyzer 2 | . . . 2 . . . . . . . . . . . . Insert Component 1 | . . . 1 . . . . . . . . . . . . Analyze 1 | . . . 1 . . . . . . . . . . . . Garrison Access Hacks 1 | . . . . . . 1 . . . . . . . . . Seal Access 1 | . . . . . . 1 . . . . . . . . . Unauthorized Hacks 2 | . . . 1 . . 1 . . . . . . . . . Terminals 1 | . . . . . . 1 . . . . . . . . . Track 1 | . . . . . . 1 . . . . . . . . . Fabricators . | . . . . . . . . . . . . . . . . Repair Stations 1 | . . . 1 . . . . . . . . . . . . Mechanics 1 | . . . 1 . . . . . . . . . . . . Recycling Units . | . . . . . . . . . . . . . . . . Scanalyzers . | . . . . . . . . . . . . . . . . Garrison Access . | . . . . . . . . . . . . . . . . Data Cores Recovered . | . . . . . . . . . . . . . . . . Used . | . . . . . . . . . . . . . . . . Hacking Detections 14 | . 1 . 4 2 . 3 . . . . 2 1 . . 1 Full Trace Events . | . . . . . . . . . . . . . . . . Feedback Events . | . . . . . . . . . . . . . . . . Feedback Blocked . | . . . . . . . . . . . . . . . . Robot Schematics Acquired . | . . . . . . . . . . . . . . . . Robots Built . | . . . . . . . . . . . . . . . . Authchips . | . . . . . . . . . . . . . . . . Time . | . . . . . . . . . . . . . . . . Total Robot Build Rating . | . . . . . . . . . . . . . . . . Part Schematics Acquired 1 | . . . 1 . . . . . . . . . . . . Parts Built . | . . . . . . . . . . . . . . . . Authchips . | . . . . . . . . . . . . . . . . Time . | . . . . . . . . . . . . . . . . Total Part Build Rating . | . . . . . . . . . . . . . . . . Parts Repaired 2 | . . . 1 . . . . . . . . 1 . . . Time 88 | . . . 38 . . . . . . . . 50 . . . Parts Recycled . | . . . . . . . . . . . . . . . . Recycled Matter . | . . . . . . . . . . . . . . . . Retrieved Matter . | . . . . . . . . . . . . . . . . Retrieved Components . | . . . . . . . . . . . . . . . . Parts Scanalyzed 1 | . . . 1 . . . . . . . . . . . . Part Schematics Acquired 1 | . . . 1 . . . . . . . . . . . . Parts Damaged . | . . . . . . . . . . . . . . . . Bothacking | -11 -10 -9 -8 -7 -7 -6 -6 -6 -5 -5 -5 -4 -3 -3 -2 ------------ Run | Yrd Mat Mat Mat Fac DSF Fac Low Low Fac Was Fac Fac Res DSF Res Used RIF Installer . | . . . . . . . . . . . . . . . . Robots Hacked . | . . . . . . . . . . . . . . . . Non-combat . | . . . . . . . . . . . . . . . . Combat . | . . . . . . . . . . . . . . . . Robot Hacks Applied . | . . . . . . . . . . . . . . . . Relay Couplers Released . | . . . . . . . . . . . . . . . . Fabnet Peak Effective % . | . . . . . . . . . . . . . . . . Robots Rewired . | . . . . . . . . . . . . . . . . Allies Hacked . | . . . . . . . . . . . . . . . . Hacks Repelled . | . . . . . . . . . . . . . . . . Allies | -11 -10 -9 -8 -7 -7 -6 -6 -6 -5 -5 -5 -4 -3 -3 -2 -------- Run | Yrd Mat Mat Mat Fac DSF Fac Low Low Fac Was Fac Fac Res DSF Res Total Allies . | . . . . . . . . . . . . . . . . Largest Group . | . . . . . . . . . . . . . . . . Highest-Rated Group . | . . . . . . . . . . . . . . . . Highest-Rated Ally . | . . . . . . . . . . . . . . . . Total Orders . | . . . . . . . . . . . . . . . . Ally Attacks . | . . . . . . . . . . . . . . . . Total Damage . | . . . . . . . . . . . . . . . . Kills . | . . . . . . . . . . . . . . . . Allies Corrupted . | . . . . . . . . . . . . . . . . Allies Melted . | . . . . . . . . . . . . . . . . Intel | -11 -10 -9 -8 -7 -7 -6 -6 -6 -5 -5 -5 -4 -3 -3 -2 ------- Run | Yrd Mat Mat Mat Fac DSF Fac Low Low Fac Was Fac Fac Res DSF Res Robot Analysis Total . | . . . . . . . . . . . . . . . . Derelict Logs Recovered 1 | . . . . . . . 1 . . . . . . . . Drone Launches . | . . . . . . . . . . . . . . . . Drone Recoveries . | . . . . . . . . . . . . . . . . Exploration | -11 -10 -9 -8 -7 -7 -6 -6 -6 -5 -5 -5 -4 -3 -3 -2 ------------- Run | Yrd Mat Mat Mat Fac DSF Fac Low Low Fac Was Fac Fac Res DSF Res Turns Passed 7451 | 77 574 1174 1587 61 422 530 440 12 131 56 1280 750 2 40 315 Spaces Moved 5480 | 59 363 331 498 41 213 907 865 21 221 93 540 729 8 71 520 Core 176 | 8 . . . . 30 1 . . . . . . . . 137 Treads 48 | . . . . . 48 . . . . . . . . . . Legs 1378 | 51 363 331 498 41 94 . . . . . . . . . . Wheels . | . . . . . . . . . . . . . . . . Hover 2520 | . . . . . . 600 865 21 221 93 288 21 . 28 383 Flight 1358 | . . . . . 41 306 . . . . 252 708 8 43 . Fastest Speed 27 | 50 120 120 120 123 34 32 50 50 46 46 37 27 27 27 50 Average Speed 71 | 110 120 165 135 123 117 44 50 50 49 55 62 36 27 37 51 Slowest Speed 260 | 120 120 260 260 123 225 200 50 50 50 118 118 46 27 56 57 Overloaded Moves . | . . . . . . . . . . . . . . . . Propulsion Burnouts . | . . . . . . . . . . . . . . . . Robots Hopped 12 | . . . . . . 3 . . . . 7 1 . 1 . Cave-ins Triggered . | . . . . . . . . . . . . . . . . Exploration Rate (%) 36 | 4 63 33 32 1 91 21 87 6 9 80 16 10 . 83 17 Regions Visited 15 Branch Regions 2 Pre-discovered Areas 1 | . . . . . . . 1 . . . . . . . . Known Exits Taken 9 | . 1 1 1 1 . 1 1 1 . . . 1 1 . . Unknown Exits Taken 2 | 1 . . . . . . . . . . 1 . . . . Scrap Searched 2 | . . . . . . . 2 . . . . . . . . Spaces Dug 27 | . . . . . . . . . 16 . 7 4 . . . Terrain Destroyed 43 | . . . . . 8 . . . 24 . 7 4 . . . Melee 11 | . . . . . . . . . . . 7 4 . . . Projectile . | . . . . . . . . . . . . . . . . AOE 32 | . . . . . 8 . . . 24 . . . . . . Terrain Rammed . | . . . . . . . . . . . . . . . . Walls Destroyed . | . . . . . . . . . . . . . . . . Machines Disabled . | . . . . . . . . . . . . . . . . Actions | -11 -10 -9 -8 -7 -7 -6 -6 -6 -5 -5 -5 -4 -3 -3 -2 --------- Run | Yrd Mat Mat Mat Fac DSF Fac Low Low Fac Was Fac Fac Res DSF Res Total 8574 | 67 437 836 1313 50 334 1039 872 21 240 97 1429 1194 7 82 556 Wait 2561 | . 14 387 720 . 30 86 6 1 2 4 838 447 . 6 20 Move 5446 | 58 362 330 497 40 212 901 864 20 221 92 528 726 7 68 520 Hop 8 | . . . . . . 2 . . . . 4 1 . 1 . Pick Up 71 | 2 7 13 8 1 14 16 1 . 2 . 3 1 . 1 2 Fast Attach 64 | 6 2 6 8 1 5 7 . . 6 1 13 6 . 3 . Attach 48 | . 1 5 6 3 16 7 . . 1 . 3 . . 1 5 Detach 15 | . . 2 2 2 2 3 . . 1 . 1 . . . 2 Swap 44 | 1 5 16 8 3 6 2 . . 1 . 1 . . 1 . Drop 82 | . 6 15 14 . 17 15 1 . 2 . 9 2 . 1 . Fire 183 | . 40 62 50 . 28 . . . 3 . . . . . . Melee 45 | . . . . . . . . . . . 29 11 . . 5 Ram 3 | . . . . . . . . . 1 . . . . . 2 Kick . | . . . . . . . . . . . . . . . . Crush . | . . . . . . . . . . . . . . . . Escape Stasis 4 | . . . . . 4 . . . . . . . . . . Rewire . | . . . . . . . . . . . . . . . . Trap . | . . . . . . . . . . . . . . . . Miscellaneous . | . . . . . . . . . . . . . . . . Route ------- -11/Scrapyard -10/Materials (discovered 3 exits: *Mat / *Min x2) -9/Materials -8/Materials -7/Factory -7/DSF -6/Factory (discovered 2 exits: *Low x2) -6/Lower Caves -6/Lower Caves -5/Factory -5/Waste -5/Factory -4/Factory -3/Research -3/DSF -2/Research History --------- Turn | Location | Event 11 | -11/Scrapyard | Discovered new exit (range 15) 78 | -11/Scrapyard | Entered Materials 154 | -10/Materials | Discovered new exit (range 8) 325 | -10/Materials | Build established: Mutant 425 | -10/Materials | Identified exit to Mines 455 | -10/Materials | Discovered exit to Mines (range 14) 633 | -10/Materials | Discovered new exit (range 15) 650 | -10/Materials | Identified exit to Materials 652 | -10/Materials | Entered another Materials area 652 | -9/Materials | Evolved 2 slots: Utility x2 978 | -9/Materials | Build established: Scavenger-Mutant 1718 | -9/Materials | Discovered new exit (range 13) 1771 | -9/Materials | Lost 3 parts (2n1u) 1824 | -9/Materials | Identified exit to Materials 1826 | -9/Materials | Entered another Materials area 1826 | -8/Materials | Evolved 2 slots: Propulsion x1, Utility x1 1920 | -8/Materials | Repaired Field Laser 3352 | -8/Materials | Discovered new exit (range 20) 3378 | -8/Materials | Identified exit to Factory 3413 | -8/Materials | Entered Factory 3413 | -7/Factory | Evolved 2 slots: Utility x2 3472 | -7/Factory | Identified exit to DSF 3474 | -7/Factory | Entered DSF 3584 | -7/DSF | Additional patrols routed to DSF 3785 | -7/DSF | Core integrity fell below 50% 3818 | -7/DSF | Lost 14 parts (2p4n4u4w) 3834 | -7/DSF | Sterilization system engaged 3854 | -7/DSF | Ambient heat levels rising (+10) 3869 | -7/DSF | Ambient heat levels rising (+10) 3880 | -7/DSF | Lost 5 parts (3n2w) 3884 | -7/DSF | Ambient heat levels rising (+10) 3887 | -7/DSF | Discovered new exit (range 15) 3895 | -7/DSF | Identified exit to Factory 3896 | -7/DSF | Entered Factory 3896 | -6/Factory | Evolved 2 slots: Propulsion x2 4057 | -6/Factory | Spotted B-75 Beast 4329 | -6/Factory | Identified exit to Lower Caves 4368 | -6/Factory | Build established: Mutant 4426 | -6/Factory | Entered Lower Caves 4432 | -6/Lower Caves | Met a Warlord Commander 4433 | -6/Lower Caves | Learned location of Warlord (-5) 4434 | -6/Lower Caves | Warlord Commander delivered Encrypted Comm Array 4858 | -6/Lower Caves | Discovered new exit (range 10) 4862 | -6/Lower Caves | Identified exit to Lower Caves 4866 | -6/Lower Caves | Entered another Lower Caves area 4870 | -6/Lower Caves | Discovered new exit (range 16) 4877 | -6/Lower Caves | Identified exit to Factory 4878 | -6/Lower Caves | Entered Factory 4878 | -5/Factory | Evolved 2 slots: Power x1, Propulsion x1 4879 | -5/Factory | Identified exit to Extension 4893 | -5/Factory | Garrison activated, responded to threat 5009 | -5/Factory | Sucked down chute 5009 | -5/Factory | Entered Waste 5017 | -5/Waste | Spotted C-40 Crusher 5018 | -5/Waste | Spotted C-40 Crusher 5024 | -5/Waste | EMP discharged 5028 | -5/Waste | Spotted C-40 Crusher 5038 | -5/Waste | Spotted C-40 Crusher 5038 | -5/Waste | Spotted C-40 Crusher 5038 | -5/Waste | Spotted C-40 Crusher 5051 | -5/Waste | Crushed by Compactor (1 part destroyed, 2 dropped) 5055 | -5/Waste | Discovered new exit (range 10) 5064 | -5/Waste | Identified exit to Factory 5065 | -5/Waste | Entered Factory 5309 | -5/Factory | Spotted B-75 Beast 5983 | -5/Factory | System corruption reached 10% 6040 | -5/Factory | Lost 7 parts (1p4n2u) 6310 | -5/Factory | Build established: Scavenger-Mutant 6338 | -5/Factory | Discovered new exit (range 15) 6345 | -5/Factory | Entered another Factory area 6345 | -4/Factory | Evolved 2 slots: Propulsion x2 6633 | -4/Factory | Repaired Cmb. Airjet 7089 | -4/Factory | Discovered new exit (range 14) 7094 | -4/Factory | Identified exit to Research 7095 | -4/Factory | Entered Research 7095 | -3/Research | Evolved 2 slots: Propulsion x2 7097 | -3/Research | Identified exit to DSF 7097 | -3/Research | Entered DSF 7116 | -3/DSF | Additional patrols routed to DSF 7118 | -3/DSF | Discovered new exit (range 16) 7137 | -3/DSF | Identified exit to Research 7137 | -3/DSF | Entered Research 7137 | -2/Research | Evolved 2 slots: Propulsion x2 7149 | -2/Research | Lost 11 parts (1p5n3u2w) 7255 | -2/Research | Spotted B-90 Cyclops 7285 | -2/Research | Spotted B-90 Cyclops 7397 | -2/Research | Core integrity fell below 50% 7405 | -2/Research | Build established: Mutant 7427 | -2/Research | Lost 11 parts (3p5n3u) 7434 | -2/Research | Core integrity fell below 20% 7438 | -2/Research | Spotted B-90 Cyclops 7452 | -2/Research | Destroyed by B-90 Cyclops with Nova Cannon Last Messages --------------- 07402_ Penetrated by Slug. 07402_ Slug penetrates Wall. 07406_ Slammed into T-07 Excavator. 07407_ Triggered Segregator Trap. 07407_ Arcs of energy rise from the floor. 07407_ Broken Salvage Targeting Computer blown off. 07407_ Adv. Signal Interpreter blown off. 07407_ Triggered Segregator Trap. 07407_ Arcs of energy rise from the floor. 07408_ Slug penetrates Wall. 07409_ Slammed into Y-72 Warden. 07419_ Acquired Force Lance. 07432_ Triggered Blade Trap. 07432_ Massive razor-sharp blades shoot up from within the floor. 07434_ Penetrated by Slug. 07436_ Slug penetrates Wall. 07448_ Triggered Alarm Trap. 07448_ An alarm sounds. 07448_ ALERT: Alarm triggered, dispatching investigation squad. 07450_ Identified Imp. Dynamic Insulation System. Map ----- +----------------------------------------------------+ | ??????????????????????????????????????????????? | | ??????????????????????????????????????????????? | | ??????????????????????????????????????????????? | | ??????????????????????????????????????????????? | | ??????????????????????????????????????????????? | | ??????????????????????????????????????????????? | | ??????????????????????????????????????????????? | | ??????????????????????????????????????????????? | | ??????????????????????????????????????????????? | | ??????????????????????????????????????????????? | | ??????????????????????????????????????????????? | | ??????????????????????????????????????????????? | | ??????????????????????????????????????????????? | | ??????????????????????????????????????????????? | | ??????????????????????????????????????????????? | | ?????????????????###########??????????????????? | | ?????????????????# #????#######???????? | | ?????????????????# #????# ??#????? | | ?????????????????# #????# #????? | | ?????????????????# #????# """ #????? | | ?????????????????# * #????# """ #????? | | ?????????????????# ###### """ #????? | | ?????????????????# # #! """ !#????? | | ?????????????????# # # """ #????? | | ?????????????????######;+#;# # #????? | | ????????????????????# @ + #?##?? | | ????????????????????# ###+####### ### | | ????????????????????# #?# #??# # | | ????????????????????# ! #?# #??# # | | ????????????????????# #?# #??# ""# | | ????????????????????# #?# #??# ""# | | ????????????????????# ** p### #### ""# | | ????????????????????# ** # T# | | ????????????????????# # ""# | | ????????????????????# + ""# | | ????????????????????# # ! ""# | | ????????????????????#BB#####+##### T## # # | | ????????????????????#BB??????????##### # # | | ????????????????????###??????????????# # # | | ?????????????????????????????????????# # # | | ?????????????????????????????????????# # = # | | ?????????????????????????????????????# ##"##### | | ?????????????????????????????????????# #???? | | ?????????????????????????????????????# #???? | | ?????????????????????????????????????# #???? | | ????????????????????############?????# #???? | | ???????????????????# ] ###### #???? | | ???????????????????# + #???? | | ???????????????????# ###+##+## #???? | | ???????????????????# # # #???? | +----------------------------------------------------+ Best States ------------- Heat Dissipation 80 Energy Generation 28 Energy Capacity 360 Matter Stores 300 Matter Capacity 300 Sight Range 20 Robot Scan Range 15 Terrain Scan Density 110 Cloak Strength 2 Additional Mass Support 9 Armor Coverage 150 Resistance: KI 30 Phase Shifting 5 Evasion (%) 67 Recoil Reduction 1 Salvage Targeting 1 Offensive Hacking 14 Defensive Hacking 10 Item Schematics ----------------- VTOL Module | -8/Materials | Scanalyzed Robot Schematics ------------------ None Fabricated ------------ Nothing Alien Tech Used ----------------- None Achievements -------------- None Challenges ------------ None Game ------ Seed SiegePointyBeamcaster Manual? 0 Play Time 01:13:37 Cumulative 183.8 hours Start 2024.06.18 @ 12:05:17 End 2024.06.18 @ 13:25:55 Sessions 1 Manual Loads 0 Difficulty Rogue Special Mode None Game No. 359 Rogue 359 Adventurer 0 Explorer 0 Win Type - Total 0 Types 0/0/0/0/0/0/0/0/0 Lore% 51 Gallery% 66 Achievement% 46 Wizard Run 0 Options --------- Layout 0 ASCII 0 Keyboard 1 Movement Numpad Keybinds 0 Fullscreen 2 Font 18/X11 Map View 38x25 Zoom Use 0% Tactical HUD 1 Map Filters NONE Filters NONE Steam 1 RUN: 14a3ba1e-4145-4606-b686-8b1967132292